bitfinex/quotes_BTCUSD_20250826
["timestamp","ask_amount","ask_price","bid_price","bid_amount"]
[1756192622154,4.769e-05,109980.0,109970.0,1.27639666]
[1756192622325,4.769e-05,109980.0,109970.0,1.37639666]
[1756192622527,4.769e-05,109980.0,109970.0,1.36739666]
[1756192622751,4.769e-05,109980.0,109970.0,1.76739666]
[1756192622965,0.00308,110020.0,110000.0,0.19090908]
[1756192623173,4.785e-05,110020.0,110010.0,1.11293044]
[1756192623329,4.785e-05,110020.0,110010.0,1.1083854]
[1756192623686,0.00520785,110020.0,110010.0,1.1083854]
[1756192624092,0.00520785,110020.0,110010.0,0.49904956]
[1756192624502,0.00620785,110020.0,110010.0,0.49904956]
[1756192625046,0.00520785,110020.0,110010.0,0.49904956]
[1756192625486,4.785e-05,110020.0,110010.0,0.50103956]
[1756192625685,4.785e-05,110020.0,110010.0,1.1083854]
[1756192625885,4.785e-05,110020.0,110010.0,0.9535054]
[1756192626234,0.00520785,110020.0,110010.0,1.12436703]
[1756192627199,4.785e-05,110020.0,110010.0,1.12436703]
[1756192628418,4.785e-05,110020.0,110010.0,0.51702119]
[1756192628627,4.785e-05,110020.0,110010.0,1.12436703]
[1756192629131,4.785e-05,110020.0,110010.0,1.16486693]
[1756192634361,0.00520785,110020.0,110010.0,1.16482693]
[1756192635720,4.785e-05,110020.0,110010.0,1.16482693]
[1756192638218,4.785e-05,110020.0,110010.0,1.12432703]
[1756192638869,4.785e-05,110020.0,110010.0,1.16578107]
[1756192639088,4.785e-05,110020.0,110010.0,0.55843523]
[1756192639726,4.785e-05,110020.0,110010.0,0.70843523]
[1756192640111,4.785e-05,110020.0,110010.0,0.55259523]
[1756192640315,4.785e-05,110020.0,110010.0,0.70839523]
[1756192640960,4.785e-05,110020.0,110010.0,1.31754107]
[1756192641233,4.785e-05,110020.0,110010.0,1.58624107]
[1756192641489,4.785e-05,110020.0,110010.0,1.61356107]
[1756192641644,4.785e-05,110020.0,110010.0,1.61176107]
[1756192641824,4.785e-05,110020.0,110010.0,1.61356107]
[1756192642240,4.785e-05,110020.0,110010.0,1.61256107]
[1756192642435,4.785e-05,110020.0,110010.0,1.61356107]
[1756192642752,4.785e-05,110020.0,110010.0,1.61456107]
[1756192643163,4.785e-05,110020.0,110010.0,1.45876107]
[1756192643367,4.785e-05,110020.0,110010.0,1.61276107]
[1756192643564,4.785e-05,110020.0,110010.0,1.00541523]
[1756192643789,4.785e-05,110020.0,110010.0,1.61276107]
[1756192644016,4.785e-05,110020.0,110010.0,1.61456107]
[1756192644216,4.785e-05,110020.0,110010.0,1.61276107]
[1756192644980,4.785e-05,110020.0,110010.0,1.61456107]
[1756192645385,4.785e-05,110020.0,110010.0,1.63201009]
[1756192645790,4.785e-05,110020.0,110010.0,2.14101009]
[1756192645999,4.785e-05,110020.0,110010.0,2.21231009]
[1756192646207,0.00307,110050.0,110040.0,0.18175209]
[1756192646425,0.00509,110050.0,110040.0,0.50100411]
[1756192646722,1.02064283,110070.0,110060.0,0.18171906]
[1756192646960,1.03126013,110070.0,110060.0,0.42894108]
[1756192647245,1.03126014,110070.0,110060.0,0.42894108]
[1756192647445,1.03433014,110070.0,110060.0,0.42894108]
[1756192647672,1.03433014,110070.0,110060.0,0.27318108]
[1756192647876,1.21603269,110070.0,110060.0,0.42894108]
[1756192649094,1.1427357,110070.0,110060.0,0.27318108]
[1756192649347,1.1427357,110070.0,110060.0,0.42894108]
[1756192649925,1.1427357,110070.0,110060.0,0.42794108]
[1756192650975,1.1447357,110070.0,110060.0,0.42794108]
[1756192652778,1.1447357,110070.0,110060.0,0.09146202]
[1756192653029,1.1447357,110070.0,110060.0,0.24718202]
[1756192653416,1.1447357,110070.0,110060.0,0.09146202]
[1756192653614,1.1447357,110070.0,110060.0,0.24718202]
[1756192655967,1.1447383,110070.0,110060.0,0.24718202]
[1756192658484,0.53739246,110070.0,110060.0,0.24718202]
[1756192659003,1.1447383,110070.0,110060.0,0.42890108]
[1756192659679,1.1447383,110070.0,110060.0,0.24718202]
[1756192661337,1.1447383,110070.0,110060.0,0.42890108]
[1756192661560,0.96303575,110070.0,110060.0,0.42890108]
[1756192662010,1.1447383,110070.0,110060.0,0.42890108]
[1756192662447,1.13626893,110070.0,110060.0,0.24718202]
[1756192664009,0.79626893,110070.0,110060.0,0.24718202]
[1756192664232,0.79626893,110070.0,110060.0,0.24714202]
[1756192664854,0.79626893,110070.0,110060.0,0.42886108]
[1756192666659,0.79626893,110070.0,110060.0,0.24714202]
[1756192667804,0.79626893,110070.0,110060.0,0.42886108]
[1756192668724,1.13626893,110070.0,110060.0,0.42886108]
[1756192669182,0.95456638,110070.0,110060.0,0.42886108]
[1756192669402,1.13626893,110070.0,110060.0,0.42886108]
[1756192669888,0.95456638,110070.0,110060.0,0.42886108]
[1756192670541,0.61456638,110070.0,110060.0,0.42886108]
[1756192671230,0.61456638,110070.0,110060.0,0.43101108]
[1756192671429,0.61456638,110070.0,110060.0,0.44485929]
[1756192673415,0.61456638,110070.0,110060.0,0.42886108]
[1756192673647,0.79626893,110070.0,110060.0,0.42833555]
[1756192673844,0.79626893,110070.0,110060.0,0.42784552]
[1756192676193,0.18892309,110070.0,110060.0,0.42784552]
[1756192676436,0.79626893,110070.0,110060.0,0.42784552]
[1756192678301,0.7965282,110070.0,110060.0,0.42784552]
[1756192679331,0.79626893,110070.0,110060.0,0.42758625]
[1756192679858,0.61456638,110070.0,110060.0,0.42758625]
[1756192680068,0.79626893,110070.0,110060.0,0.42758625]
[1756192681746,0.61456638,110070.0,110060.0,0.42758625]
[1756192682307,0.00722054,110070.0,110060.0,0.42968625]
[1756192682823,0.61456638,110070.0,110060.0,0.42968625]
[1756192683339,0.00213054,110070.0,110060.0,0.42968625]
[1756192683548,0.00213054,110070.0,110060.0,0.43148625]
[1756192683985,0.00213054,110070.0,110060.0,1.03883209]
[1756192684188,0.00013054,110070.0,110060.0,1.03883209]
[1756192684439,0.00013054,110070.0,110060.0,0.42968625]
[1756192684912,0.00220054,110070.0,110060.0,0.27404625]
[1756192685136,0.00013054,110070.0,110060.0,0.42964625]
[1756192685972,0.00013054,110070.0,110060.0,1.03879209]
[1756192687532,0.00013054,110070.0,110060.0,1.43879209]
[1756192687954,0.00013054,110070.0,110060.0,1.03879209]
[1756192688171,0.00013054,110070.0,110060.0,1.59624111]
[1756192688385,0.00013054,110070.0,110060.0,1.48889527]
[1756192688603,0.00013054,110070.0,110060.0,2.09624111]
[1756192689208,0.00013054,110070.0,110060.0,2.09724111]
[1756192689775,0.00013054,110070.0,110060.0,2.09824111]
[1756192689984,0.00013054,110070.0,110060.0,2.09724111]
[1756192690387,0.00013054,110070.0,110060.0,2.10024111]
[1756192690847,0.00013054,110070.0,110060.0,2.09924111]
[1756192691230,0.00013054,110070.0,110060.0,2.10124111]
[1756192691453,1e-08,110070.0,110060.0,2.27854511]
[1756192691664,1e-08,110070.0,110060.0,2.47854511]
[1756192692189,0.0004,110100.0,110090.0,0.18166954]
[1756192692420,0.00087838,110100.0,110090.0,1.1080174]
[1756192692795,0.00087838,110100.0,110090.0,1.1098174]
[1756192693420,0.00087838,110100.0,110090.0,1.14823642]
[1756192694044,0.00087838,110100.0,110090.0,1.52905882]
[1756192694250,0.00087838,110100.0,110090.0,1.92905882]
[1756192694692,0.00187838,110100.0,110090.0,1.92905882]
[1756192695092,0.00187838,110100.0,110090.0,1.93005882]
[1756192695294,0.00087838,110100.0,110090.0,1.93005882]
[1756192695734,0.00087838,110100.0,110090.0,1.77549882]
[1756192695871,0.00087838,110100.0,110090.0,1.93105882]
[1756192698600,0.00087838,110100.0,110090.0,2.29975882]
[1756192698781,1e-08,110100.0,110090.0,2.29975882]
[1756192699189,1e-08,110100.0,110090.0,2.30875882]
[1756192699391,1e-08,110100.0,110090.0,2.45875882]
[1756192699602,0.0004,110110.0,110100.0,1.57899888]
[1756192699750,0.00054343,110110.0,110100.0,1.8298809]
[1756192700155,0.00054343,110110.0,110100.0,2.0985809]
[1756192700384,0.0175,110120.0,110110.0,0.19908556]
[1756192700598,0.0175,110120.0,110110.0,1.05727342]
[1756192701156,0.0175,110120.0,110110.0,1.45727342]
[1756192701371,0.0175,110120.0,110110.0,1.47477342]
[1756192702421,0.0175,110120.0,110110.0,1.47577342]
[1756192703091,0.95642354,110160.0,110150.0,0.18157058]
[1756192703291,1.13958764,110160.0,110150.0,0.4285126]
[1756192703491,0.95800193,110160.0,110150.0,0.4285126]
[1756192703967,1.13955603,110160.0,110150.0,0.2730326]
[1756192704309,1.13955603,110160.0,110150.0,0.24694202]
[1756192704610,1.13955603,110160.0,110150.0,0.4285126]
[1756192705176,0.96107193,110160.0,110150.0,0.4285126]
[1756192705389,0.62107193,110160.0,110150.0,0.4285126]
[1756192705602,0.01372609,110160.0,110150.0,0.4285126]
[1756192707852,0.80262603,110160.0,110150.0,0.4284726]
[1756192708475,0.62107193,110160.0,110150.0,0.4284726]
[1756192708671,0.01372609,110160.0,110150.0,0.4284726]
[1756192708873,0.62106523,110160.0,110150.0,0.4284726]
[1756192709295,0.80261933,110160.0,110150.0,0.4284726]
[1756192711301,0.80261933,110160.0,110150.0,0.09146202]
[1756192711537,0.80261933,110160.0,110150.0,0.24686202]
[1756192712143,0.79418334,110160.0,110150.0,0.24686202]
[1756192712391,0.80262453,110160.0,110150.0,0.24686202]
[1756192713347,0.80262453,110160.0,110150.0,0.09146202]
[1756192713560,1.40997037,110160.0,110150.0,0.09146202]
[1756192713771,1.40997037,110160.0,110150.0,0.24686202]
[1756192714388,1.42942464,110160.0,110150.0,0.24686202]
[1756192714597,0.21473296,110160.0,110150.0,0.24686202]
[1756192714811,0.8220788,110160.0,110150.0,0.4284326]
[1756192715026,0.80262453,110160.0,110150.0,0.24686202]
[1756192715459,0.8220843,110160.0,110150.0,0.24686202]
[1756192715655,0.8220843,110160.0,110150.0,0.4284326]
[1756192717037,0.8220843,110160.0,110150.0,0.24686202]
[1756192718575,0.03320381,110160.0,110150.0,0.4284326]
[1756192719570,0.21475791,110160.0,110150.0,0.4283926]
[1756192720467,0.82210375,110160.0,110150.0,0.24682202]
[1756192721101,0.82210375,110160.0,110150.0,0.4283926]
[1756192721272,0.64054965,110160.0,110150.0,0.4283926]
[1756192721651,0.82210375,110160.0,110150.0,0.4283926]
[1756192721816,0.63208901,110160.0,110150.0,0.4283926]
[1756192722061,0.64056025,110160.0,110150.0,0.4283926]
[1756192722241,0.82211435,110160.0,110150.0,0.4283926]
[1756192722399,0.82211435,110160.0,110150.0,0.24682202]
[1756192722624,1.45381447,110160.0,110150.0,0.24678202]
[1756192722812,1.45381447,110160.0,110150.0,0.09146202]
[1756192723031,0.18158707,110140.0,110130.0,0.34754]
[1756192723222,0.81884392,110140.0,110130.0,0.59432202]
[1756192723417,0.82205392,110140.0,110130.0,0.59432202]
[1756192723651,0.82205392,110140.0,110130.0,0.78968605]
[1756192723851,0.02793101,110140.0,110130.0,0.79504605]
[1756192724059,0.02793101,110140.0,110130.0,0.52634605]
[1756192724264,0.00847124,110140.0,110130.0,0.52634605]
[1756192724431,0.01045124,110140.0,110130.0,0.36781605]
[1756192724801,0.03319643,110140.0,110130.0,0.52313605]
[1756192725118,0.03319643,110140.0,110130.0,0.50937557]
[1756192725331,0.01366124,110140.0,110130.0,0.50937557]
[1756192725531,0.03320112,110140.0,110130.0,0.50937557]
[1756192725734,0.02999112,110140.0,110130.0,0.50937557]
[1756192725936,0.21478819,110140.0,110130.0,0.35190557]
[1756192726134,0.21478819,110140.0,110130.0,0.50722557]
[1756192726973,0.21478819,110140.0,110130.0,0.5481763]
[1756192727381,0.03320112,110140.0,110130.0,0.5481763]
[1756192727582,0.03320112,110140.0,110130.0,0.5503263]
[1756192728194,0.02999112,110140.0,110130.0,0.5503263]
[1756192729474,0.03320112,110140.0,110130.0,0.5503263]
[1756192729822,0.02999112,110140.0,110130.0,0.5503263]
[1756192731020,0.02801112,110140.0,110130.0,0.5503263]
[1756192731220,0.7921272,110150.0,110140.0,0.18158707]
[1756192731464,0.82215505,110150.0,110140.0,0.27304909]
[1756192733293,0.21480921,110150.0,110140.0,0.27304909]
[1756192733496,0.82215505,110150.0,110140.0,0.27304909]
[1756192734295,0.64058369,110150.0,110140.0,0.27304909]
[1756192734510,0.02804785,110150.0,110140.0,0.27840909]
[1756192734688,0.00848894,110150.0,110140.0,0.88575493]
[1756192735309,0.0001434,110160.0,110150.0,0.18157058]
[1756192735507,0.0301784,110160.0,110150.0,0.4303826]
[1756192735710,0.01061464,110160.0,110150.0,0.4303826]
[1756192736293,0.00863464,110160.0,110150.0,1.04073844]
[1756192736796,0.0001434,110160.0,110150.0,0.4333926]
[1756192740529,0.0022834,110160.0,110150.0,0.4303826]
[1756192740708,0.0001434,110160.0,110150.0,0.4333926]
[1756192741699,0.0001434,110160.0,110150.0,0.6990826]
[1756192741975,0.0001434,110160.0,110150.0,0.7020926]
[1756192742578,0.0001434,110160.0,110150.0,1.30943844]
[1756192743182,0.0001434,110160.0,110150.0,1.04073844]
[1756192743520,0.0001434,110160.0,110150.0,0.4333926]
[1756192744269,0.0001434,110160.0,110150.0,0.4370306]
[1756192745920,0.0001434,110160.0,110150.0,1.04437644]
[1756192749087,0.0001434,110160.0,110150.0,0.88909644]
[1756192749358,0.0001434,110160.0,110150.0,1.04433644]
[1756192750522,0.0001434,110160.0,110150.0,0.88909644]
[1756192750703,0.0001434,110160.0,110150.0,1.04429644]
[1756192752082,0.0001434,110160.0,110150.0,1.31299644]
[1756192753090,0.0001434,110160.0,110150.0,1.15779644]
[1756192753301,0.0022834,110160.0,110150.0,0.5453706]
[1756192753505,0.0052334,110160.0,110150.0,0.6969326]
[1756192754736,0.61257924,110160.0,110150.0,0.6969326]
[1756192754945,0.79413334,110160.0,110150.0,0.5417326]
[1756192755070,0.79413334,110160.0,110150.0,0.24666202]
[1756192755276,1.74147918,110160.0,110150.0,0.09146202]
[1756192755478,1.74147918,110160.0,110150.0,0.1552]
[1756192755683,0.18158707,110140.0,110120.0,0.04021427]
[1756192755937,0.79403939,110130.0,110120.0,0.18162005]
[1756192756088,0.79403939,110130.0,110110.0,0.26051836]
[1756192756298,0.79108939,110130.0,110120.0,0.1552]
[1756192756998,0.79403939,110130.0,110120.0,0.1552]
[1756192757218,0.18162005,110120.0,110110.0,0.0698]
[1756192757435,0.79405589,110120.0,110110.0,0.24662202]
[1756192758482,1.13405589,110120.0,110110.0,0.24662202]
[1756192759952,1.16135889,110120.0,110110.0,0.24662202]
[1756192760162,1.16135889,110120.0,110110.0,0.24762202]
[1756192760894,1.76870473,110120.0,110110.0,0.001]
[1756192761253,1.58708468,110120.0,110110.0,0.001]
[1756192761457,1.76870473,110120.0,110110.0,0.001]
[1756192761660,0.55401305,110120.0,110110.0,0.001]
[1756192761897,1.92390473,110120.0,110110.0,0.001]
[1756192763156,1.76870473,110120.0,110110.0,0.001]
[1756192763358,1.92490473,110120.0,110110.0,0.001]
[1756192763565,0.52163654,110110.0,110100.0,0.1552]
[1756192763761,1.13112238,110110.0,110100.0,0.24666202]
[1756192763965,1.13407238,110110.0,110100.0,0.24666202]
[1756192765230,1.13507238,110110.0,110100.0,0.24666202]
[1756192765448,1.13507238,110110.0,110100.0,0.42831506]
[1756192765449,0.52772654,110110.0,110100.0,0.42831506]
[1756192765680,0.341,110110.0,110100.0,0.43040506]
[1756192765904,0.368306,110110.0,110100.0,0.43348506]
[1756192766116,0.368306,110110.0,110100.0,0.43040506]
[1756192766332,0.341,110110.0,110100.0,0.43040506]
[1756192766538,0.341,110110.0,110100.0,0.43348506]
[1756192766762,0.341,110110.0,110100.0,0.43040506]
[1756192766996,1.13505238,110110.0,110100.0,0.24666202]
[1756192768248,1.13505238,110110.0,110100.0,0.42831506]
[1756192769996,1.13505238,110110.0,110100.0,0.24666202]
[1756192771088,1.13505238,110110.0,110100.0,0.42831506]
[1756192771928,1.13505238,110110.0,110100.0,0.28827449]
[1756192772170,1.13505238,110110.0,110100.0,0.46992753]
[1756192772621,1.13505238,110110.0,110100.0,0.28827449]
[1756192773061,1.13505238,110110.0,110100.0,0.24670202]
[1756192773280,1.13505238,110110.0,110100.0,0.09146202]
[1756192773724,0.18165304,110100.0,110090.0,0.15524]
[1756192773944,1.28926888,110100.0,110090.0,0.09160545]
[1756192774151,1.28926888,110100.0,110090.0,0.00014343]
[1756192774363,1.33340694,110100.0,110090.0,0.00014343]
[1756192774977,1.33340694,110100.0,110090.0,0.00114343]
[1756192775270,1.33340694,110100.0,110090.0,0.00014343]
[1756192775675,1.33440694,110100.0,110090.0,0.00014343]
[1756192776382,1.35185596,110100.0,110090.0,0.00014343]
[1756192777072,1.37123685,110100.0,110090.0,0.00014343]
[1756192777566,1.37023685,110100.0,110090.0,0.00014343]
[1756192778214,1.37323401,110100.0,110090.0,0.00014343]
[1756192778451,1.37423401,110100.0,110090.0,0.00014343]
[1756192778884,1.37323401,110100.0,110090.0,0.00014343]
[1756192779029,1.37523401,110100.0,110090.0,0.00014343]
[1756192779889,1.39963897,110100.0,110090.0,0.00014343]
[1756192781173,1.39965258,110100.0,110090.0,0.00014343]
[1756192781499,1.43223137,110100.0,110090.0,0.00014343]
[1756192782506,1.40782641,110100.0,110090.0,0.00014343]
[1756192782928,1.45653692,110100.0,110090.0,0.00014343]
[1756192783347,1.46286523,110100.0,110090.0,0.00014343]
[1756192783553,0.81665229,110100.0,110090.0,0.00014343]
[1756192783783,1.42399813,110100.0,110090.0,0.00014343]
[1756192784408,1.43038915,110100.0,110090.0,0.00014343]
[1756192785086,1.27514915,110100.0,110090.0,0.00014343]
[1756192785322,1.43038915,110100.0,110090.0,0.00014343]
[1756192785662,1.38167864,110100.0,110090.0,0.00014343]
[1756192786133,1.39013308,110100.0,110090.0,0.00014343]
[1756192786571,1.45508042,110100.0,110090.0,0.00014343]
[1756192787597,1.4551239,110100.0,110090.0,0.00014343]
[1756192788056,1.43820295,110100.0,110090.0,0.00014343]
[1756192788285,1.4551242,110100.0,110090.0,0.00014343]
[1756192790474,1.2998842,110100.0,110090.0,0.00014343]
[1756192790687,1.4551242,110100.0,110090.0,0.00014343]
[1756192791260,0.18168604,110080.0,110070.0,0.00308]
[1756192791461,0.27486292,110080.0,110070.0,0.0971104]
[1756192791714,0.40067703,110080.0,110070.0,0.35210994]
[1756192792747,0.58236307,110080.0,110070.0,0.35210994]
[1756192792950,0.58236307,110080.0,110070.0,0.0971104]
[1756192793369,0.55798818,110080.0,110070.0,0.0971104]
[1756192793580,1.18970891,110080.0,110070.0,0.0971104]
[1756192794206,1.18970891,110080.0,110070.0,0.27881295]
[1756192795396,1.00802287,110080.0,110070.0,0.27881295]
[1756192795699,1.18970891,110080.0,110070.0,0.27881295]
[1756192795912,0.58236307,110080.0,110070.0,0.27881295]
[1756192796997,0.58237938,110080.0,110070.0,0.27881295]
[1756192798096,0.58443938,110080.0,110070.0,0.27881295]
[1756192798307,1.21196658,110080.0,110070.0,0.0939204]
[1756192798499,1.20666658,110080.0,110070.0,0.0970404]
[1756192798760,1.20666658,110080.0,110070.0,0.0939204]
[1756192799476,1.20666658,110080.0,110070.0,0.27562295]
[1756192799701,1.20666658,110080.0,110070.0,0.27874295]
[1756192800408,1.18972522,110080.0,110070.0,0.27874295]
[1756192800608,0.43319319,110080.0,110070.0,0.27874295]
[1756192801035,0.06069334,110080.0,110070.0,0.88608879]
[1756192801251,0.03631845,110080.0,110070.0,0.88608879]
[1756192801458,0.03631845,110080.0,110070.0,0.27874295]
[1756192801672,0.82535033,110080.0,110070.0,0.43394295]
[1756192801884,0.64366429,110080.0,110070.0,0.43394295]
[1756192802312,0.03631845,110080.0,110070.0,0.43394295]
[1756192803019,0.21800449,110080.0,110070.0,0.43494295]
[1756192803221,0.03631845,110080.0,110070.0,0.43494295]
[1756192803424,0.06069334,110080.0,110070.0,0.43494295]
[1756192804082,0.06069334,110080.0,110070.0,0.43594295]
[1756192804505,0.03631845,110080.0,110070.0,0.43594295]
[1756192807884,0.03631845,110080.0,110070.0,1.04328879]
[1756192808145,0.03631845,110080.0,110070.0,0.43594295]
[1756192808307,0.01693756,110080.0,110070.0,1.04328879]
[1756192808464,0.01693756,110080.0,110070.0,0.43594295]
[1756192808672,0.01693756,110080.0,110070.0,1.04328879]
[1756192812647,0.01693756,110080.0,110070.0,1.20228879]
[1756192813253,0.01693756,110080.0,110070.0,1.54228879]
[1756192813630,0.01693756,110080.0,110070.0,1.54128879]
[1756192813836,0.01693756,110080.0,110070.0,1.94228879]
[1756192814245,0.01693756,110080.0,110070.0,1.94528879]
[1756192814449,0.01693756,110080.0,110070.0,1.94028879]
[1756192814659,0.01693756,110080.0,110070.0,1.94328879]
[1756192814855,0.01693756,110080.0,110070.0,1.79308879]
[1756192815060,0.01693756,110080.0,110070.0,1.94824879]
[1756192816980,0.01693756,110080.0,110070.0,2.21694879]
[1756192817618,0.01693756,110080.0,110070.0,1.81694879]
[1756192818097,0.01693756,110080.0,110070.0,2.21694879]
[1756192818738,0.01693756,110080.0,110070.0,1.81694879]
[1756192818925,0.44384199,110130.0,110110.0,0.18163654]
[1756192819187,0.44384199,110130.0,110120.0,0.42820207]
[1756192819188,0.41653699,110130.0,110120.0,0.42820207]
[1756192819406,0.41859699,110130.0,110120.0,0.42820207]
[1756192819629,1.20754638,110130.0,110120.0,0.42820207]
[1756192819845,1.20754638,110130.0,110120.0,0.09146202]
[1756192820052,1.20754638,110130.0,110120.0,0.42820207]
[1756192820255,1.13539279,110130.0,110120.0,0.42820207]
[1756192820468,1.13739279,110130.0,110120.0,0.42820207]
[1756192820895,0.52904695,110130.0,110120.0,0.42820207]
[1756192821114,0.95478924,110130.0,110120.0,0.42820207]
[1756192821325,1.13539279,110130.0,110120.0,0.24658202]
[1756192821552,1.13539279,110130.0,110120.0,0.42820207]
[1756192822199,1.13739279,110130.0,110120.0,0.42820207]
[1756192822620,1.13739279,110130.0,110120.0,0.24658202]
[1756192823318,1.13739279,110130.0,110120.0,0.42820207]
[1756192823531,1.13539279,110130.0,110120.0,0.42820207]
[1756192823744,1.13439279,110130.0,110120.0,0.42820207]
[1756192823949,1.13539279,110130.0,110120.0,0.42820207]
[1756192826845,1.13539279,110130.0,110120.0,0.24658202]
[1756192827257,1.13539279,110130.0,110120.0,0.42820207]
[1756192832813,1.13539279,110130.0,110120.0,0.42816207]
[1756192833675,0.95378924,110130.0,110120.0,0.42816207]
[1756192833880,0.0011434,110130.0,110120.0,1.04046791]
[1756192834098,0.98048114,110150.0,110130.0,0.18160355]
[1756192834311,0.79408291,110140.0,110130.0,0.27306557]
[1756192834510,0.18673707,110140.0,110130.0,0.27306557]
[1756192834734,0.79408291,110140.0,110130.0,0.27306557]
[1756192835147,0.79408291,110140.0,110130.0,0.24654202]
[1756192835375,0.79608291,110140.0,110130.0,0.24654202]
[1756192835573,0.79608291,110140.0,110130.0,0.42814557]
[1756192835975,0.00715,110140.0,110130.0,0.43017557]
[1756192836182,0.18873707,110140.0,110130.0,0.42814557]
[1756192836392,0.79608291,110140.0,110130.0,0.42814557]
[1756192836851,0.79708291,110140.0,110130.0,0.42814557]
[1756192838933,0.00815,110140.0,110130.0,0.43017557]
[1756192839136,0.18973707,110140.0,110130.0,0.42814557]
[1756192839538,0.79708291,110140.0,110130.0,0.24654202]
[1756192839732,0.79708291,110140.0,110130.0,0.42814557]
[1756192840328,0.18973707,110140.0,110130.0,0.42814557]
[1756192840567,0.79708291,110140.0,110130.0,0.42814557]
[1756192840843,0.61549584,110140.0,110130.0,0.42814557]
[1756192841062,0.00815,110140.0,110130.0,0.43017557]
[1756192841679,0.18973707,110140.0,110130.0,0.43017557]
[1756192842391,0.00815,110140.0,110130.0,0.43017557]
[1756192843185,0.18973707,110140.0,110130.0,0.43017557]
[1756192843399,0.79708291,110140.0,110130.0,0.42814557]
[1756192844786,0.79708291,110140.0,110130.0,0.27306557]
[1756192844996,0.79708291,110140.0,110130.0,0.24646202]
[1756192845417,0.18160355,110130.0,110120.0,0.155]
[1756192845631,0.94909939,110130.0,110120.0,0.09146202]
[1756192846883,0.18162005,110120.0,110110.0,0.46468681]
[1756192847083,0.79411589,110120.0,110110.0,0.55614883]
[1756192847545,0.79411589,110120.0,110110.0,0.73778537]
[1756192848281,0.79411589,110120.0,110110.0,0.73878537]
[1756192848644,0.79411589,110120.0,110110.0,0.55814883]
[1756192849430,0.79411589,110120.0,110110.0,0.73978537]
[1756192849643,0.18677005,110120.0,110110.0,0.74181537]
[1756192849854,0.79411589,110120.0,110110.0,0.73978537]
[1756192850260,0.79411589,110120.0,110110.0,0.74181537]
[1756192850463,0.79411589,110120.0,110110.0,0.73978537]
[1756192851328,0.79411589,110120.0,110110.0,0.47311537]
[1756192851663,0.79411589,110120.0,110110.0,0.09346202]
[1756192851951,1.40146173,110120.0,110110.0,0.002]
[1756192852389,1.42876873,110120.0,110110.0,0.002]
[1756192852598,0.82142289,110120.0,110110.0,0.002]
[1756192853222,0.82142289,110120.0,110110.0,0.001]
[1756192853460,0.21407705,110120.0,110100.0,0.33665304]
[1756192853676,0.97522289,110120.0,110110.0,0.27512856]
[1756192853878,0.21287705,110120.0,110110.0,0.27512856]
[1756192854089,0.82022289,110120.0,110110.0,0.27512856]
[1756192854302,0.79291589,110120.0,110110.0,0.27512856]
[1756192854522,0.61229584,110120.0,110110.0,0.27512856]
[1756192854728,0.003,110120.0,110110.0,0.27512856]
[1756192855158,0.001,110120.0,110110.0,0.27512856]
[1756192855554,0.18463005,110120.0,110110.0,0.27512856]
[1756192855765,0.79491589,110120.0,110110.0,0.09146202]
[1756192856026,0.79491589,110120.0,110110.0,0.24646202]
[1756192856236,0.79391589,110120.0,110110.0,0.24646202]
[1756192857985,0.79391589,110120.0,110110.0,0.42809856]
[1756192858228,0.79391589,110120.0,110110.0,0.43008856]
[1756192859657,0.79391589,110120.0,110110.0,0.24845202]
[1756192859903,0.79391589,110120.0,110110.0,0.24646202]
[1756192860401,1.40126173,110120.0,110110.0,0.09146202]
[1756192860728,0.18165304,110100.0,110090.0,0.31047175]
[1756192860939,0.79100888,110100.0,110090.0,0.29022377]
[1756192861144,0.79100888,110100.0,110090.0,0.31689331]
[1756192861358,0.55672404,110100.0,110090.0,0.47189331]
[1756192861561,0.74131708,110100.0,110090.0,0.13323377]
[1756192861822,0.74131708,110100.0,110090.0,0.09146202]
[1756192862610,0.79394888,110100.0,110090.0,0.27712156]
[1756192862807,0.94600888,110100.0,110090.0,0.27712156]
[1756192863010,0.94894888,110100.0,110090.0,0.09346202]
[1756192863457,0.94894888,110100.0,110090.0,0.09146202]
[1756192866268,0.18168604,110080.0,110070.0,0.2687]
[1756192866634,0.79104188,110080.0,110070.0,0.51516202]
[1756192866847,0.79398188,110080.0,110070.0,0.51715202]
[1756192867055,0.79104188,110080.0,110070.0,0.51715202]
[1756192867486,0.78903188,110080.0,110070.0,0.51715202]
[1756192867701,0.18168604,110080.0,110070.0,0.5176304]
[1756192867907,0.78903188,110080.0,110070.0,0.7406498]
[1756192868155,0.18168604,110080.0,110070.0,0.69933295]
[1756192869045,0.18369604,110080.0,110070.0,0.43063295]
[1756192869469,0.18369604,110080.0,110070.0,0.2489304]
[1756192869686,0.79398188,110080.0,110070.0,0.2489304]
[1756192869907,0.79398188,110080.0,110070.0,0.0919404]
[1756192870143,0.79398188,110080.0,110070.0,0.2469004]
[1756192870595,0.94894188,110080.0,110070.0,0.0919404]
[1756192874874,1.55628772,110080.0,110070.0,0.00047838]
[1756192875098,1.91373674,110080.0,110070.0,0.00047838]
[1756192875298,1.93066762,110080.0,110070.0,0.00047838]
[1756192875908,1.95798662,110080.0,110070.0,0.00047838]
[1756192876468,1.95898662,110080.0,110070.0,0.00047838]
[1756192877251,1.96102662,110080.0,110070.0,0.00047838]
[1756192877625,1.96101225,110080.0,110070.0,0.00047838]
[1756192878421,1.98049538,110080.0,110070.0,0.00047838]
[1756192879528,0.6108037,110080.0,110070.0,0.00047838]
[1756192879730,1.98049538,110080.0,110070.0,0.00047838]
[1756192879931,1.21814954,110080.0,110070.0,0.00047838]
[1756192880202,1.35366641,110080.0,110070.0,0.00047838]
[1756192880404,0.72887155,110080.0,110070.0,0.00047838]
[1756192881001,0.71195504,110080.0,110070.0,0.00047838]
[1756192881195,0.7288685,110080.0,110070.0,0.00047838]
[1756192881421,1.33621434,110080.0,110070.0,0.00047838]
[1756192882185,1.3362175,110080.0,110070.0,0.00047838]
[1756192882366,1.35570553,110080.0,110070.0,0.00047838]
[1756192882572,1.35570553,110080.0,110070.0,0.00246838]
[1756192882802,1.3362175,110080.0,110070.0,0.00047838]
[1756192883393,1.3557077,110080.0,110070.0,0.00047838]
[1756192884432,1.35571223,110080.0,110070.0,0.00047838]
[1756192887100,1.3557258,110080.0,110070.0,0.00047838]
[1756192887547,1.2007258,110080.0,110070.0,0.00047838]
[1756192887754,1.3557258,110080.0,110070.0,0.00047838]
[1756192887971,0.40543996,110080.0,110070.0,0.00246838]
[1756192888803,0.40342996,110080.0,110070.0,0.00246838]
[1756192889006,0.40342996,110080.0,110070.0,0.00563838]
[1756192889214,1.0158558,110080.0,110070.0,0.00047838]
[1756192890706,0.99893465,110080.0,110070.0,0.00047838]
[1756192890875,1.01588954,110080.0,110070.0,0.00047838]
[1756192891510,0.2484637,110080.0,110070.0,0.18417093]
[1756192891720,0.2484637,110080.0,110070.0,0.88614879]
[1756192891721,0.22177766,110080.0,110070.0,0.88614879]
[1756192892146,0.04727389,110080.0,110070.0,0.88614879]
[1756192892374,0.01995489,110080.0,110070.0,0.27880295]
[1756192892598,0.01995489,110080.0,110070.0,0.88614879]
[1756192892835,0.01895489,110080.0,110070.0,0.88614879]
[1756192893068,0.01695489,110080.0,110070.0,0.88614879]